[Event "85th ARM-ch HL 2025"]
[Site "Yerevan"]
[Date "2025.01.18"]
[Round "5.3"]
[White "Andriasian, Zaven"]
[Black "Harutyunyan, Tigran K."]
[Result "0-1"]
[Annotator "TA"]
[ECO "C55"]
[WhiteElo "2554"]
[BlackElo "2513"]
[PlyCount "108"]
[EventDate "2025.01.13"]
[EventType "tourn"]
[EventCountry "ARM"]
[SourceTitle "playchess.com"]
[Source "ChessBase"]
[SourceQuality "1"]
[TimeControl "40/5400+30:1800+30"]

{[%evp 13,108,19,37,33,15,27,24,15,6,-28,-10,-70,-66,-65,-26,-79,-87,-77,-68,-65,-68,-78,-70,-68,-79,-73,-79,-91,-97,-93,-41,-63,-52,-44,-55,-44,-60,-54,-47,-41,-20,-25,-29,-27,-25,-28,-24,-27,-15,-14,-18,-16,-14,-18,-28,-40,-45,-55,-47,-64,-41,-45,-39,-39,-41,-39,-28,-33,-33,-246,-247,-547,-501,-566,-587,-422,-559,-554,-560,-587,-578,-556,-578,-548,-456,-542,-533,-595,-589,-604,-592,-579,-578,-2346,-2242,-29983,-29984]} 1. e4 {[%emt 0:00:04]} e5 {[%emt 0:00:20]} 2. Nf3 {[%emt 0:00:11]} Nc6 {[%emt 0:00:13]} 3. Bc4 {[%emt 0:00:09]} Nf6 {[%emt 0:00:10][%cal Bg8f6,Bf6d5,Bd5b4,Bb4c2][%mdl 32]} 4. d3 {[%emt 0:00:08]} Be7 {[%emt 0:00:28]} 5. a4 {[%emt 0:00:09]} d5 {[%emt 0:01:50]} 6. exd5 {[%emt 0:00:39]} Nxd5 {[%emt 0:00:07]} 7. O-O {[%emt 0:01:41]} O-O {[%emt 0:00:09]} 8. Re1 {[%emt 0:01:05]} Bg4 {[%emt 0:02:24]} 9. Nbd2 {[%emt 0:04:28]} Kh8 {[%emt 0:05:20]} 10. h3 {[%emt 0:07:13]} Bh5 {[%emt 0:00:26]} 11. Nf1 {[%emt 0:01:07]} (11. g4 $5 Bg6 $8 12. Nxe5 $11) 11... Ndb4 {[%emt 0:05:01]} 12. N1h2 {[%emt 0:12:59]} (12. g4 $11 Bg6 13. Bd2 (13. Nxe5 Nxe5 14. Rxe5 f5 $11)) 12... f5 $15 {[%emt 0:04:19][%cal Oe5e4]} 13. c3 {[%emt 0:01:14] [#]} e4 $1 {[%emt 0:05:55]} 14. dxe4 {[%emt 0:12:00]} (14. g4 $11 {remains equal.} fxg4 (14... Nxd3 15. Bxd3 Bg6 16. Be2 $15) 15. hxg4) 14... Qxd1 $17 {[%emt 0:02:06]} 15. Rxd1 {[%emt 0:00:37]} Nc2 {[%emt 0:01:48]} 16. Ra2 {[%emt 0:03:58] and exf5 should not be overlooked} fxe4 {[%emt 0:01:30] Black is more active.} 17. b3 {[%emt 0:02:03]} exf3 {[%emt 0:03:21]} (17... Bxf3 $2 18. gxf3 Ne5 19. fxe4 $18 (19. Rxc2 exf3 20. Be3 Nxc4 $18) (19. Bf1 e3 $18)) 18. Rxc2 {[%emt 0:00:04]} fxg2 {[%emt 0:01:01]} 19. Re1 {[%emt 0:06:09][%cal Oh2g4]} Bf6 {[%emt 0:06:15]} 20. Bd5 {[%emt 0:13:09][%cal Oh2g4]} Bg6 {[%emt 0:10:39]} 21. Be4 {[%emt 0:00:12]} Bf7 {[%emt 0:04:46]} (21... Rae8 22. Rce2) ({Better is} 21... Rfe8 $17 22. Rce2 Rxe4 23. Rxe4 Bxc3) 22. Bxc6 $15 {[%emt 0:02:11]} (22. Kxg2 $2 Bxb3 23. Rce2 Bxa4 $19 (23... Bxc3 $2 24. Bd2 $19)) 22... bxc6 {[%emt 0:01:02]} 23. c4 $1 {[%emt 0:00:07][%cal Oc1b2]} Bg6 {[%emt 0:03:17]} 24. Rce2 {[%emt 0:00:49]} Rab8 {[%emt 0:14:23]} 25. Ba3 {[%emt 0:00:14]} Rfc8 {[%emt 0:01:14]} 26. Re3 {[%emt 0:00:37][%cal Oh2f3]} a5 {[%emt 0:04:21]} 27. Bc5 {[%emt 0:05:17]} Bg5 {[%emt 0:05:25] A strong pair of Bishops.} 28. Rg3 $1 {[%emt 0:07:29]} Bf4 {[%emt 0:05:11]} 29. Rf3 $1 {[%emt 0:01:33]} Bd6 {[%emt 0:02:06]} 30. Bxd6 {[%emt 0:01:59]} cxd6 {[%emt 0:00:01]} 31. Rc3 {[%emt 0:00:19] Repels Bc2} d5 {[%emt 0:02:33]} 32. Nf3 {[%emt 0:05:08]} dxc4 {[%emt 0:01:02]} 33. bxc4 {[%emt 0:03:14]} Rb4 {[%emt 0:01:08]} 34. Ne5 {[%emt 0:01:03]} Rxa4 {[%emt 0:00:41]} 35. Nxg6+ {[%emt 0:00:12]} hxg6 {[%emt 0:00:02][%mdl 4096] Endgame KRR-KRR. Black is two pawns up.} 36. Re7 {[%emt 0:00:17]} Ra8 {[%emt 0:01:23]} 37. Rg3 {[%emt 0:03:38]} Kh7 {[%emt 0:03:15]} 38. Rg4 {[%emt 0:00:18]} Rf8 {[%emt 0:02:36]} 39. Re6 {[%emt 0:03:47]} Ra2 {[%emt 0:01:37]} 40. Rexg6 {[%emt 0:00:00]} Rf7 {[%emt 0:00:00]} 41. R6g5 $2 {[%emt 0:05:08]} (41. Rxg2 $15 Raxf2 42. Rxc6 Rf1+ 43. Kh2) 41... a4 $19 {[%emt 0:01:42]} ({And not} 41... Rfxf2 42. Rxg7+ Kh6 43. R7g6+ Kh7 44. Rg7+ Kh8 45. Rg8+ Kh7 46. R8g7+ $11) ({Weaker is} 41... Raxf2 42. Rxa5 Rc2 43. Kh2 $15) 42. Rxg2 $2 {[%emt 0:11:40]} (42. Kxg2 Raxf2+ (42... Rfxf2+ $2 43. Kg3 $19) 43. Kg3) 42... Ra7 $1 {[%emt 0:01:09]} 43. Rh5+ {[%emt 0:00:23]} Kg8 {[%emt 0:00:02]} 44. Rgg5 {[%emt 0:00:17]} Rb2 $1 {[%emt 0:01:21]} 45. Ra5 {[%emt 0:03:48]} Rbb7 {[%emt 0:00:10]} 46. Rhe5 {[%emt 0:00:26]} Kf7 {[%emt 0:01:25] Inhibits Re8.} 47. Rf5+ {[%emt 0:01:25] [#]} Ke8 $1 {[%emt 0:01:20]} 48. Rh5 {[%emt 0:00:08]} Kd7 {[%emt 0:05:45]} 49. Rag5 {[%emt 0:00:29] [#]} Ke6 $1 {[%emt 0:01:05]} 50. Re5+ {[%emt 0:02:24]} Kf7 {[%emt 0:00:45]} 51. Rhf5+ {[%emt 0:05:31]} Kg8 {[%emt 0:01:01]} 52. Re8+ {[%emt 0:02:18]} Kh7 {[%emt 0:00:02]} 53. h4 {[%emt 0:00:25]} a3 {[%emt 0:00:48] White must now prevent ...a2.} 54. Ref8 {[%emt 0:03:26]} g6 {[%emt 0:00:23]} 0-1

[Event "85th ARM-ch HL 2025"]
[Site "Yerevan"]
[Date "2025.01.18"]
[Round "5.4"]
[White "Sargsyan, Sargis Vach."]
[Black "Grigoryan, Karen H."]
[Result "1-0"]
[Annotator "TA"]
[ECO "B40"]
[WhiteElo "2370"]
[BlackElo "2572"]
[PlyCount "57"]
[EventDate "2025.01.13"]
[EventType "tourn"]
[EventCountry "ARM"]
[SourceTitle "playchess.com"]
[Source "ChessBase"]
[SourceQuality "1"]
[TimeControl "40/5400+30:1800+30"]

{[%evp 9,57,-8,1,13,9,0,0,0,0,0,14,0,0,0,0,0,0,0,0,0,0,0,0,-6,156,148,358,372,433,425,612,537,1639,1529,1313,1074,29982,29983,29983,29984,29984,29985,29985,29986,29986,29987,29987,29988,29988,1729]} 1. e4 {[%emt 0:00:09]} c5 {[%emt 0:00:11]} 2. Nf3 {[%emt 0:00:09]} e6 {[%emt 0:00:46]} 3. c3 {[%emt 0:01:03]} Nf6 {[%emt 0:00:29]} 4. Bd3 {[%emt 0:00:33]} d5 {[%emt 0:01:25]} 5. e5 {[%emt 0:00:07]} Nfd7 {[%emt 0:00:17]} 6. Bc2 {[%emt 0:00:11]} d4 {[%emt 0:00:58]} 7. O-O {[%emt 0:00:24]} Nc6 {[%emt 0:00:19]} 8. Ba4 {[%emt 0:00:19]} g5 {[%emt 0:01:41][%cal Bg7g5,Bg5g4,Bg4f3,Bf3g2][%mdl 32]} 9. d3 {[%emt 0:00:33]} g4 $1 {[%emt 0:00:51]} 10. Ng5 {[%emt 0:01:52][%cal Bf3g5,Bg5e4,Be4f6][%mdl 32]} h6 {[%emt 0:01:43]} 11. Ne4 {[%emt 0:00:26]} Ndxe5 {[%emt 0:00:15]} 12. cxd4 {[%emt 0:01:09]} cxd4 {[%emt 0:00:14]} 13. f4 $36 {[%emt 0:03:31][%mdl 2048] Black is under pressure.} (13. Bf4 Ng6 14. Qc1 Bg7 15. Nd6+ Kf8 16. Bxc6 bxc6 $15) 13... gxf3 {[%emt 0:00:23] Strongly threatening ...f5.} 14. Nbd2 {[%emt 0:00:04]} fxg2 {[%emt 0:01:49]} (14... Nxd3 $2 15. Qxf3 (15. Nxf3 Nc5 $18) 15... f5 16. Qxd3 $18) 15. Nf6+ {[%emt 0:00:02]} Ke7 {[%emt 0:00:10]} 16. Rf4 {[%emt 0:00:02]} Nxd3 $2 {[%emt 0:02:50] [#]} ({Better is} 16... Rb8 $11) 17. Nde4 $1 $16 {[%emt 0:00:49] Chess con chili.} Nce5 $2 {[%emt 0:02:38] [#]} (17... Nxf4 $16 {keeps fighting.} 18. Bxf4 Qb6) 18. Bb5 $1 $18 {[%emt 0:02:04]} Nxc1 {[%emt 0:05:30]} (18... Nxf4 19. Bxf4 d3 20. Bxe5 Qb6+ 21. Kxg2 Qxb5 22. Rc1 Qxe5 23. Qa4 $11) (18... Bd7 19. Bxd3) 19. Rxc1 {[%emt 0:01:53][%cal Od1h5]} Qb6 {[%emt 0:06:04]} (19... d3 $142 20. Qa4 Qb6+ 21. Kxg2 Kd8) 20. Rc5 {[%emt 0:01:28][%cal Od1d4] Strongly threatening Qxd4!.} Ng6 {[%emt 0:09:10]} 21. Rf2 {[%emt 0:01:03]} Bg7 {[%emt 0:11:05]} 22. Qxd4 {[%emt 0:02:23][%cal Od4b4] Threatening mate with Qb4!.} Rd8 {[%emt 0:12:39]} 23. Qb4 {[%emt 0:00:32][%cal Rc5c7]} Rd1+ {[%emt 0:00:36]} 24. Kxg2 {[%emt 0:00:04][%cal Bg1g2,Bg2h3,Bh3h4][%mdl 32]} Nh4+ {[%emt 0:01:18]} 25. Kh3 {[%emt 0:00:32]} Rd3+ {[%emt 0:01:47]} 26. Kxh4 {[%emt 0:00:12]} (26. Bxd3 $2 {too greedy.} Qxb4 27. Rc7+ Kd8 28. Rxf7 Bxf6 (28... Nf5 $2 29. Kg2 $19) 29. R2xf6 Qd4 30. Kxh4 Qxd3 $19) 26... Kd8 {[%emt 0:02:32]} 27. Rd2 {[%emt 0:01:16]} Rxd2 {[%emt 0:00:25]} 28. Qxd2+ {[%emt 0:00:03]} Ke7 {[%emt 0:00:07]} 29. Qf4 {[%emt 0:03:09]} (29. Nd7 $142 Bc3 30. bxc3 (30. Rxc3 Bxd7 31. Qxd7+ Kf8 32. Rc7 Qxc7 33. Qxc7 Kg8 34. Qg3+ Kf8) (30. Nxb6 Bxd2 31. Nxa8 Bf4 $18) 30... Bxd7 31. Qxd7+ Kf8 32. Rc7 Qxc7 33. Qxc7 Kg7 34. Qg3+ (34. Qxb7 Rh8 $18) 34... Kf8 35. Qe5 (35. Qd6+ Kg8 36. Qe7 Rc8 37. Be8 Rxe8 38. Nf6+ Kg7 39. Nh5+ Kg8 40. Qxe8+ Kh7 41. Qxf7+ Kh8 42. Qg7#)) 1-0

[Event "85th ARM-ch HL 2025"]
[Site "Yerevan"]
[Date "2025.01.18"]
[Round "5.5"]
[White "Hovhannisyan, Robert"]
[Black "Hayrapetyan, Hovik"]
[Result "1-0"]
[Annotator "TA"]
[ECO "B51"]
[WhiteElo "2626"]
[BlackElo "2462"]
[PlyCount "81"]
[EventDate "2025.01.13"]
[EventType "tourn"]
[EventCountry "ARM"]
[SourceTitle "playchess.com"]
[Source "ChessBase"]
[SourceQuality "1"]
[TimeControl "40/5400+30:1800+30"]

{[%evp 19,81,23,20,18,30,37,26,24,30,28,32,24,26,23,18,28,29,0,0,0,0,0,0,0,0,0,0,0,3,1,5,7,16,14,15,14,23,14,14,14,26,26,26,26,26,26,26,16,42,36,78,70,76,81,102,85,93,85,86,87,752,555,5102,2503]} 1. e4 {[%emt 0:00:04]} c5 {[%emt 0:00:04]} 2. Nf3 {[%emt 0:00:15]} d6 {[%emt 0:00:04]} 3. Bb5+ {[%emt 0:00:23]} Nd7 {[%emt 0:00:08]} 4. d4 {[%emt 0:00:33]} cxd4 {[%emt 0:00:06]} 5. Qxd4 {[%emt 0:00:08]} a6 {[%emt 0:01:20]} 6. Bxd7+ {[%emt 0:00:45]} Bxd7 {[%emt 0:00:06]} 7. Nc3 {[%emt 0:00:08]} e5 {[%emt 0:11:00]} 8. Qd3 {[%emt 0:00:15]} h6 {[%emt 0:00:05]} 9. Nd2 {[%emt 0:01:34]} Nf6 {[%emt 0:00:38]} 10. Nc4 {[%emt 0:01:14]} Be6 {[%emt 0:01:06]} 11. O-O {[%emt 0:01:40]} Rc8 {[%emt 0:00:34]} 12. Ne3 {[%emt 0:00:49]} Qc7 {[%emt 0:00:52]} 13. Rd1 {[%emt 0:09:03]} Be7 {[%emt 0:00:53]} 14. a4 {[%emt 0:01:42][%cal Ba2a4,Ba4a5][%mdl 32]} O-O {[%emt 0:00:36]} 15. a5 {[%emt 0:01:24]} Rfd8 {[%emt 0:01:18]} 16. Bd2 {[%emt 0:04:29]} Bc4 {[%emt 0:41:14]} 17. Nxc4 {[%emt 0:00:30]} Qxc4 {[%emt 0:01:01]} 18. Be3 {[%emt 0:08:41]} Qxd3 {[%emt 0:00:17]} 19. Rxd3 {[%emt 0:00:21]} d5 {[%emt 0:04:25] Hoping for ...d4.} 20. exd5 {[%emt 0:19:01]} Bb4 {[%emt 0:00:30]} 21. Bd2 {[%emt 0:02:59]} Bxc3 {[%emt 0:02:04]} 22. Bxc3 {[%emt 0:03:16]} Rxd5 {[%emt 0:01:04]} 23. h3 {[%emt 0:09:44]} Rxd3 {[%emt 0:04:13]} 24. cxd3 $11 {[%emt 0:00:05][%mdl 4096] Endgame KRB-KRN} Nd7 {[%emt 0:04:10]} 25. Ra4 {[%emt 0:06:28]} f6 {[%emt 0:01:16]} 26. d4 {[%emt 0:01:36]} exd4 {[%emt 0:01:39]} 27. Rxd4 {[%emt 0:00:24]} Rc7 {[%emt 0:00:15]} 28. g4 {[%emt 0:04:12]} Kf7 {[%emt 0:04:29]} 29. Kg2 {[%emt 0:00:21]} Ne5 {[%emt 0:01:17]} 30. f4 {[%emt 0:05:40]} Nc6 {[%emt 0:00:05]} 31. Rd3 {[%emt 0:01:33]} Ke7 {[%emt 0:01:00]} 32. Kf3 {[%emt 0:04:04]} Kf7 {[%emt 0:16:28]} 33. Ke4 {[%emt 0:04:34]} Re7+ {[%emt 0:00:21]} 34. Kd5 {[%emt 0:01:06]} Rd7+ {[%emt 0:00:11]} 35. Kc4 {[%emt 0:00:56]} Rxd3 {[%emt 0:02:34]} 36. Kxd3 $14 {[%emt 0:00:05] KB-KN} Ke6 {[%emt 0:00:32]} 37. Kc4 {[%emt 0:03:58]} Kd6 {[%emt 0:00:27]} 38. f5 {[%emt 0:00:22]} h5 {[%emt 0:00:32]} 39. gxh5 {[%emt 0:00:59]} Kd7 $2 {[%emt 0:00:35][%mdl 8192]} (39... Ne7 $16) 40. Kc5 $18 {[%emt 0:00:00]} Ne7 {[%emt 0:00:00] [#]} 41. Bxf6 $1 {[%emt 0:03:28]} 1-0

[Event "85th ARM-ch HL 2025"]
[Site "Yerevan"]
[Date "2025.01.19"]
[Round "6.1"]
[White "Davtyan, Artur"]
[Black "Hayrapetyan, Hovik"]
[Result "1/2-1/2"]
[Annotator "TA"]
[ECO "D02"]
[WhiteElo "2458"]
[BlackElo "2462"]
[PlyCount "81"]
[EventDate "2025.01.13"]
[EventType "tourn"]
[EventCountry "ARM"]
[SourceTitle "playchess.com"]
[Source "ChessBase"]
[SourceQuality "1"]
[TimeControl "40/5400+30:1800+30"]

{[%evp 35,81,-16,0,0,28,39,70,68,76,73,64,64,91,82,91,46,138,12,8,11,17,24,34,0,0,0,0,0,0,0,0,0,0,0,0,0,0,0,0,0,0,0,0,0,0,0,0,0]} 1. d4 {[%emt 0:03:23]} Nf6 {[%emt 0:00:05]} 2. Nf3 {[%emt 0:00:38]} d5 {[%emt 0:00:10]} 3. c3 {[%emt 0:00:32]} e6 {[%emt 0:03:06]} 4. Bf4 {[%emt 0:00:27]} c5 {[%emt 0:00:41]} 5. e3 {[%emt 0:00:06]} Nc6 {[%emt 0:00:14]} 6. Nbd2 {[%emt 0:00:08]} Bd6 {[%emt 0:04:42]} 7. Bg3 {[%emt 0:00:32]} O-O {[%emt 0:02:42]} 8. Be2 {[%emt 0:02:46]} Bxg3 {[%emt 0:01:27]} 9. hxg3 {[%emt 0:00:05]} Qd6 {[%emt 0:00:48]} 10. Bb5 {[%emt 0:09:19]} h6 {[%emt 0:08:27]} 11. O-O {[%emt 0:01:34]} Bd7 {[%emt 0:10:50]} 12. a4 {[%emt 0:00:57]} Rab8 {[%emt 0:04:24]} 13. Qb3 {[%emt 0:09:15]} cxd4 {[%emt 0:05:34]} 14. exd4 {[%emt 0:01:41]} a6 {[%emt 0:00:19]} 15. Bd3 {[%emt 0:01:44]} b5 {[%emt 0:00:58]} 16. axb5 {[%emt 0:00:07]} axb5 {[%emt 0:00:04]} 17. Rfc1 {[%emt 0:08:34]} Rfc8 {[%emt 0:07:40]} 18. Ra6 {[%emt 0:02:57]} (18. Bxb5 $2 Ne7 19. Bxd7 Rxb3 20. Bxc8 Rxb2 $19) 18... Qe7 {[%emt 0:06:04]} 19. Qd1 {[%emt 0:05:26]} Be8 {[%emt 0:08:48]} 20. b4 {[%emt 0:03:42]} e5 {[%emt 0:05:23]} 21. dxe5 {[%emt 0:03:32]} Nxe5 {[%emt 0:00:08]} 22. Nxe5 {[%emt 0:00:04]} Qxe5 {[%emt 0:00:04]} 23. Nf3 {[%emt 0:00:06]} Qh5 {[%emt 0:02:16]} 24. Qd2 {[%emt 0:12:02]} Bd7 {[%emt 0:10:04]} 25. Qf4 {[%emt 0:06:28]} Re8 {[%emt 0:04:46]} (25... Rb7 $1 $14) 26. Rxf6 {[%emt 0:16:13]} (26. Ra7 $16 {[%cal Oa7d7] Rxd7! is the strong threat.} Rbd8 27. Rc7) 26... gxf6 $11 {[%emt 0:00:58]} 27. Qxf6 {[%emt 0:00:08]} Bg4 {[%emt 0:02:38]} 28. Nd4 {[%emt 0:01:03]} Bd1 {[%emt 0:06:18]} 29. f3 {[%emt 0:10:17]} (29. Nxb5 $2 Re1+ 30. Bf1 Rxf1+ 31. Kxf1 Qh1#) 29... Re1+ {[%emt 0:00:07]} 30. Kf2 {[%emt 0:00:27]} Qh1 {[%emt 0:01:52]} 31. g4 {[%emt 0:00:00]} (31. Nxb5 $2 Qg1#) 31... Rg1 {[%emt 0:03:03]} 32. Bh7+ $1 {[%emt 0:00:40]} (32. Nxb5 Qxg2+ 33. Ke3 Re1+ 34. Kd4 Qf2+ (34... Qxf3 $2 35. Qxf3 Bxf3 36. Rxe1 $18) 35. Kxd5 Bb3+ (35... Bxf3+ 36. Qxf3 Qxf3+ 37. Kc4 Rxc1 38. Bf5 Qe2+ 39. Bd3 Rc8+ 40. Kd5 Qxd3+ 41. Nd4 Re1 42. g5 Qc4+ 43. Kd6 Rd8#) 36. c4 Rxb5+ (36... Rxc1 37. Bh7+ Kxh7 38. Qxf7+ Kh8 39. Qf6+ Kh7 40. Qf5+ Kg7 41. Qe5+ Kg8 42. Qe6+ Kg7 43. Qe5+ Kh7 44. Qf5+ Kg7 45. Qe5+ $11) 37. Kd6 Qb6+ (37... Rxb4 38. Bh7+ Kxh7 39. Qxf7+ Kh8 40. Qf6+ Kh7 41. Qf7+ Kh8 42. Qf6+ Kg8 43. Qg6+ Kf8 44. Qxh6+ Ke8 45. Qh8+ Kf7 46. Qh7+ Kf8 47. Qf5+ Kg7 48. Qg5+ Kf7 49. Qh5+ Kf8 50. Qh8+ Kf7 51. Qh7+ Kf6 52. Qh6+ Kf7 53. Qh7+ $11) 38. Kd7 Qa7+ (38... Qxf6 39. cxb5 Rxc1 40. Bf5 Be6+ 41. Kd6 Bc8+ 42. Kd5 Bb7#) 39. Kd6 Qa6+ (39... Rxc1 40. Qd8+ Kg7 41. Qa5 Qd4+ 42. Kc7 Rxa5 43. g5 Ra7+ 44. Kc6 Qd7+ 45. Kc5 Rc7+ 46. Kb6 Qc6+ 47. Ka5 Ra7#) 40. Kd7 Rb7+ 41. Kd8 Qa8#) 32... Kxh7 {[%emt 0:00:05]} 33. Qxf7+ {[%emt 0:00:02]} Kh8 {[%emt 0:00:04]} 34. Qf6+ {[%emt 0:00:03]} (34. Qxd5 Qxg2+ (34... Rxg2+ $2 35. Ke3 $19) 35. Ke3 Re1+) 34... Kh7 {[%emt 0:01:18]} 35. Qf5+ {[%emt 0:00:04]} Kg8 {[%emt 0:00:30]} 36. Qxd5+ {[%emt 0:00:03]} Kh7 {[%emt 0:00:10]} 37. Qe4+ {[%emt 0:02:40]} (37. Nxb5 Qxg2+ (37... Rxg2+ $2 38. Ke3 $19) 38. Ke3 Re1+ (38... Qe2+ 39. Kd4 Qd2+ 40. Kc5 Rxb5+ 41. Kxb5 Qxd5+ 42. Kb6 Re1 43. f4 Re6+ 44. Kc7 Rc6+ 45. Kb7 Qd7+ 46. Kb8 Rc8#) 39. Kd3 Qe2+ (39... Bxf3 $2 40. Qf7+ Kh8 41. Rxe1 $18) 40. Kd4 Qd2+ (40... Rxb5 41. Qf7+ Kh8 42. Qf8+ Kh7 43. Qf7+ Kh8 44. Qf8+ Kh7 45. Qf7+ $11) 41. Kc4 Be2+ (41... Qxc1 42. Qf7+ Kh8 43. Qf6+ Kg8 44. Qg6+ Kf8 45. Qf6+ Kg8 46. Qg6+ Kf8 47. Qf6+ Ke8 48. Qg6+ Kf8 $11) 42. Kb3 Qxd5+ 43. Kb2 Ra8 (43... Qd2+ 44. Rc2 Qd1 45. Na3 Ra8 46. Kb3 Rxa3+ 47. Kxa3 Qxc2 48. b5 Qxc3+ 49. Ka4 Bd1#) 44. Na3 Rxa3 (44... Rxc1 45. Kxc1 Rxa3 46. c4 Qd1+ 47. Kb2 Rb3+ 48. Ka2 Qb1#) 45. Kxa3 Rxc1 46. Kb2 Qd2+ 47. Kb3 Rxc3+ 48. Ka4 Qa2#) 37... Kg8 {[%emt 0:00:09]} 38. Qd5+ {[%emt 0:01:00]} Kh7 {[%emt 0:00:06]} 39. Qe4+ {[%emt 0:00:18]} (39. Nxb5 Qxg2+ (39... Rxg2+ $2 40. Ke3 $19) 40. Ke3 Re1+ (40... Qe2+ 41. Kd4 Qd2+ 42. Kc5 Rxb5+ 43. Kxb5 Qxd5+ 44. Kb6 Re1 45. c4 Re6+ 46. Kc7 Qc6+ 47. Kb8 Re8+ 48. Ka7 Ra8#) 41. Kd3 Qe2+ (41... Bxf3 $2 {loses.} 42. Qf7+ Kh8 43. Rxe1 $18) 42. Kd4 Qd2+ (42... Rxb5 43. Qf7+ Kh8 44. Qf8+ Kh7 45. Qf7+ Kh8 46. Qf8+ Kh7 47. Qf7+ $11) 43. Kc4 Be2+ (43... Qxc1 44. Qf7+ Kh8 45. Qf6+ Kg8 46. Qg6+ Kf8 47. Qf6+ Kg8 48. Qg6+ Kf8 49. Qf6+ Ke8 50. Qg6+ Ke7 51. Qg7+ Ke8 52. Qg6+ Kd8 53. Qd6+ Ke8 54. Qg6+ $11) 44. Kb3 Qxd5+ 45. Kb2 Rxc1 (45... Qd2+ {leads to mate.} 46. Rc2 Qd1 47. Na3 Ra8 48. Kb3 Rxa3+ 49. Kxa3 Qxc2 50. b5 Qxc3+ 51. Ka4 Bd1#) 46. Nd4 Qc4 47. Nc2 Rc8 (47... Qf4 48. g5 Qd2 49. g6+ Kxg6 50. Kb3 Qxc2+ 51. Ka3 Ra8#) 48. Kxc1 Qxc3 (48... Bxf3 49. Kb1 Qb3+ 50. Kc1 Rxc3 51. Kd2 Rxc2+ 52. Ke1 Qb1#) (48... Qf4+ 49. Kb1 Ra8 50. Kb2 Bd3 51. Na3 Qd2+ 52. Kb3 Qc1 53. c4 Rxa3#) 49. Kb1 Qxc2+ 50. Ka1 Ra8#) 39... Kg8 {[%emt 0:00:06]} 40. Qe6+ {[%emt 0:00:00]} Kh7 {[%emt 0:00:00]} 41. Qe4+ {[%emt 0:12:18]} 1/2-1/2

[Event "85th ARM-ch HL 2025"]
[Site "Yerevan"]
[Date "2025.01.19"]
[Round "6.2"]
[White "Grigoryan, Karen H."]
[Black "Hovhannisyan, Robert"]
[Result "0-1"]
[Annotator "TA"]
[ECO "B13"]
[WhiteElo "2572"]
[BlackElo "2626"]
[PlyCount "74"]
[EventDate "2025.01.13"]
[EventType "tourn"]
[EventCountry "ARM"]
[SourceTitle "playchess.com"]
[Source "ChessBase"]
[SourceQuality "1"]
[TimeControl "40/5400+30:1800+30"]

{[%evp 9,74,-16,4,12,1,-20,2,-31,-22,-12,42,27,33,38,31,21,13,19,28,0,0,0,0,0,0,0,8,15,14,0,0,0,0,0,96,0,0,0,0,-70,-92,-60,0,-421,-395,-434,-432,-431,-435,-415,-398,-518,-508,-816,-531,-763,-546,-432,0,-789,-691,-745,-739,-1903,-1888,-1729,-1683]} 1. d4 {[%emt 0:00:30]} d5 {[%emt 0:00:14]} 2. Nc3 {[%emt 0:00:12]} Nf6 {[%emt 0:00:55]} 3. Bf4 {[%emt 0:00:13]} c5 {[%emt 0:01:36]} 4. e3 {[%emt 0:00:14]} cxd4 {[%emt 0:01:13]} 5. exd4 {[%emt 0:00:06]} Bg4 {[%emt 0:02:41]} 6. f3 {[%emt 0:01:11]} Bd7 {[%emt 0:00:13]} 7. Qd2 {[%emt 0:04:27]} e6 {[%emt 0:01:23]} 8. O-O-O {[%emt 0:02:29]} Bb4 {[%emt 0:02:36]} 9. a3 {[%emt 0:00:37]} Ba5 {[%emt 0:00:50]} ({Black should try} 9... Be7 $11) 10. Qe3 {[%emt 0:01:22]} O-O {[%emt 0:02:46]} 11. h4 {[%emt 0:01:18]} Nc6 {[%emt 0:18:59]} 12. h5 {[%emt 0:06:50]} h6 {[%emt 0:00:15]} 13. g4 {[%emt 0:05:21] Hoping for g5.} Nh7 {[%emt 0:01:11]} 14. Bd3 {[%emt 0:00:56]} Bxc3 {[%emt 0:02:56]} 15. Bxh7+ {[%emt 0:00:58]} Kxh7 {[%emt 0:00:04]} 16. Qxc3 {[%emt 0:00:10]} (16. bxc3 $2 Na5 17. Qd3+ Kg8 $19) 16... Rc8 {[%emt 0:02:12]} 17. Qd3+ {[%emt 0:00:18]} Kh8 {[%emt 0:05:54] Black is weak on the dark squares} 18. Nh3 {[%emt 0:01:54]} (18. Kb1 f6 19. Nh3 e5 20. dxe5 fxe5 21. Qxd5 Bxg4 22. Qxd8 Rcxd8 23. Rxd8 Nxd8 24. fxg4 exf4 25. Rf1) 18... f6 {[%emt 0:01:06]} 19. Bd6 {[%emt 0:10:58]} (19. Kb1 {simplifies} e5 20. dxe5 fxe5 21. Qxd5 Bxg4 22. fxg4 Qxd5 23. Rxd5 exf4 24. Rf1) 19... Rf7 {[%emt 0:01:40]} 20. Nf4 {[%emt 0:11:31]} Na5 {[%emt 0:03:23]} 21. Bb4 {[%emt 0:02:05]} Ba4 {[%emt 0:05:59] [#]} (21... Nc4 $11 {remains equal.}) 22. Bxa5 {[%emt 0:04:58]} (22. Nxe6 Bxc2 23. Nxd8 Bxd3+ 24. Kd2 Nc4+ 25. Kc1 (25. Kc3 $2 Rd7 $19) 25... Nxa3+ (25... Rxd8 26. Rxd3 Rc8 27. Rc3 $15) 26. Bc5 Rxd8 $17) ({Better is} 22. Rh2 $1 $16) 22... Qxa5 $11 {[%emt 0:00:18]} 23. Rd2 {[%emt 0:01:34]} Rfc7 {[%emt 0:05:48]} 24. Ng6+ {[%emt 0:03:24]} (24. Rhh2 $1 $11) 24... Kg8 $15 {[%emt 0:00:09]} 25. Rhh2 {[%emt 0:00:16]} Kf7 {[%emt 0:10:20]} (25... b5 $1 $15 26. Qe3 b4 27. axb4 (27. Qxe6+ $2 {loses.} Kh7 $19) 27... Qxb4 28. Qxe6+ Kh7) 26. f4 $2 {[%emt 0:08:02][%mdl 8192] [#]} (26. Kb1 $1 $11 {and White has nothing to worry.}) 26... Bb5 $1 $19 {[%emt 0:02:15]} 27. Qb3 {[%emt 0:01:50] [#]} Rxc2+ $3 {[%emt 0:01:05][%mdl 512]} 28. Qxc2 {[%emt 0:00:08]} Rxc2+ {[%emt 0:00:26]} 29. Kxc2 {[%emt 0:00:06]} Qa4+ {[%emt 0:01:59]} 30. Kc1 {[%emt 0:02:04]} Qc4+ {[%emt 0:01:12]} 31. Rc2 {[%emt 0:05:35]} (31. Kb1 $142 Qf1+ 32. Kc2) 31... Qf1+ {[%emt 0:00:13]} 32. Kd2 {[%emt 0:00:06]} Qd3+ {[%emt 0:00:15]} 33. Kc1 {[%emt 0:00:32]} Qf1+ {[%emt 0:04:24]} (33... Qe3+ 34. Rhd2 Ba4 (34... Qg1+ $2 35. Rd1 $19) 35. b3 $19 (35. Rc7+ $2 Ke8 $19)) (33... Qxd4 $142 34. Rc7+ Ke8) 34. Kd2 {[%emt 0:00:11]} Bc4 {[%emt 0:00:59] ...Qg1 is the strong threat.} 35. Rc3 {[%emt 0:09:34]} Qb1 {[%emt 0:01:08]} 36. Ke3 {[%emt 0:05:43]} Qg1+ {[%emt 0:00:22]} 37. Rf2 {[%emt 0:00:07]} Qg3+ {[%emt 0:00:06]} 0-1